Cogmind - Beta 15 @@@ ROGUE MODE // 2025.05.18 @ 19:35:19 Player: PieTheDye Result: Destroyed by D-53 Grenadier with Mini Grenade Launcher Performance ------------- Evolutions (0) 0 Regions Visited (2) 400 Robots Destroyed (9) 45 Value Destroyed (144) 144 Prototype IDs (0) 0 Alien Tech Used (0) 0 Bonus (0) 0 TOTAL SCORE: 589 Bonus ------- None Cogmind --------- Core Integrity 0/250 Matter 226/300 Energy 97/100 System Corruption 2% Temperature Cool (6) Movement Flying (40) Location -10/Mines Parts ------- > --- POWER (1) -------- (None) > --- PROPULSION (2) --- Flight Unit > --- UTILITY (2) ------ Signal Interpreter > --- WEAPON (2) ------- Light Assault Rifle Light Assault Rifle > --- INVENTORY (5) ---- ECM Suite Assault Rifle Welding Torch Peak State ------------ > --- POWER ------------ Light Ion Engine > --- PROPULSION ------- Armored Wheel Armored Wheel > --- UTILITY ---------- Seismic Detector ECM Suite > --- WEAPON ----------- Assault Rifle Light Assault Rifle > --- INVENTORY -------- Wheel Compact Wheel Small Storage Unit Small Laser Welding Torch [Rating: 9] Favorites ----------- Power Light Ion Engine Engine Light Ion Engine Propulsion Armored Wheel Wheel Armored Wheel Flight Unit Flight Unit Utility Seismic Detector Device Seismic Detector Processor Signal Interpreter Weapon Light Assault Rifle Ballistic Gun Light Assault Rifle Special Weapon Welding Torch Build | -11 -10 -10 ------- Run | Yrd Mat Min Slots Evolved . | . . . Power . | . . . Propulsion . | . . . Utility . | . . . Weapon . | . . . Parts Attached 16 | 6 4 6 Power 2 | 1 . 1 Engine 2 | 1 . 1 Core . | . . . Reactor . | . . . Propulsion 6 | 2 2 2 Treads . | . . . Leg . | . . . Wheel 4 | 2 2 . Hover . | . . . Flight 2 | . . 2 Utility 3 | 1 2 . Device 2 | 1 1 . Storage . | . . . Processor 1 | . 1 . Hackware . | . . . Protection . | . . . Artifact . | . . . Weapon 5 | 2 . 3 Energy Gun . | . . . Energy Cannon . | . . . Ballistic Gun 4 | 2 . 2 Ballistic Cannon . | . . . Launcher . | . . . Special Weapon 1 | . . 1 Impact Weapon . | . . . Slashing Weapon . | . . . Piercing Weapon . | . . . Special Melee Weapon . | . . . Unidentified Prototypes . | . . . Parts Lost 3 | . . 3 Power 1 | . . 1 Propulsion 1 | . . 1 Utility 1 | . . 1 Weapon . | . . . Highest Loss Streak 3 | . . 3 To Critical Strikes . | . . . Average Backups 3 | 1 3 4 Power . | . . . Propulsion . | . . 1 Utility 1 | . 1 1 Weapon . | . . . Tool/Special . | . . . Unused Backups 2 | . 2 . Power . | . . . Propulsion . | . . . Utility 1 | . 1 . Weapon 1 | . 1 . Tool/Special . | . . . Average Slot Usage (%) 96 | . 97 95 Engine 13 | . 14 12 Wheel 17 | . 28 6 Flight 10 | . . 21 Device 15 | . 16 14 Processor 11 | . 8 14 Ballistic Gun 25 | . 28 22 Special Weapon 1 | . . 2 Peak Build Rating 9 | 6 9 9 Average Rating 7 | 4 8 7 On Entrance 5 | . 6 9 Naked Turns . | . . . Heaviest Build 9 | 7 9 7 Greatest Support 26 | 26 26 8 Greatest Overweight (x) . | . . . Average Overweight (x) . | . . . Largest Inventory Capacity 5 | 5 5 5 Average Capacity 5 | 5 5 5 Most Carried 5 | 3 5 5 Average Carried 3 | 1 3 4 Final Capacity 5 | 5 5 5 Final Carried 3 | 2 3 3 Class Distribution -------------------- 90% | Mutant 9% | Scavenger-Mutant Dominant Class ---------------- Mutant | -10/Materials Mutant | -10/Mines Resources | -11 -10 -10 ----------- Run | Yrd Mat Min Matter Collected 519 | 296 29 194 Remotely . | . . . Salvage Created 265 | 108 64 93 Parts 17 | 6 3 8 Haulers Intercepted . | . . . Recyclers Shooed . | . . . Parts Field Recycled . | . . . Retrieved Matter . | . . . Parts Self-Destructed . | . . . Prevented . | . . . Kills | -11 -10 -10 ------- Run | Yrd Mat Min Combat Hostiles Destroyed 8 | . 3 5 Guns 7 | . 3 4 AOE 1 | . . 1 Classes Destroyed 5 | 2 2 1 Tunneler 1 | 1 . . Recycler 1 | 1 . . Swarmer 5 | . 2 3 Grunt 2 | . 1 1 Assembled 1 | . . 1 Best Kill Streak 3 | 2 3 3 Combat Bots Only 3 | . 3 3 Max Kills in Single Turn 1 | 1 1 1 Gunslinging . | . . . Exploded 1 | . . 1 Melee . | . . . Uniques/NPCs Destroyed . | . . . Combat | -11 -10 -10 -------- Run | Yrd Mat Min Hostile Shots Fired 76 | . 9 67 Missed 27 | . 3 24 Hits 49 | . 6 43 Melee 1 | . . 1 Projectile 48 | . 6 42 AOE 1 | . . 1 Damage Taken 627 | . 47 580 Core 255 | . 6 249 Absorbed by Shields . | . . . Core Remaining (%) 100 | 100 . . Volleys Fired 48 | 9 11 28 Largest 2 | 2 2 2 Hottest 40 | 40 40 40 Shots Fired 94 | 18 22 54 Gun 92 | 18 22 52 Cannon . | . . . Launcher . | . . . Special 2 | . . 2 Kinetic 92 | 18 22 52 Thermal 2 | . . 2 Explosive . | . . . Electromagnetic . | . . . Robot Hit Streak 6 | 6 3 6 Robot Miss Streak 7 | 4 2 7 Penetration Max . | . . . Secondary Targets 3 | . . 3 Max Gunslinging Chain 1 | . . 1 Shots Hit Robots 50 | 10 10 30 Core Hits 16 | 3 4 9 Critical Kills 1 | . 1 . Critical Parts Destroyed . | . . . Critical Strikes 1 | . 1 . Destroy 1 | . 1 . Melee Attacks . | . . . Impact . | . . . Slashing . | . . . Piercing . | . . . Sneak Attacks . | . . . Combat Hostiles . | . . . Follow-up Attacks . | . . . Damage Inflicted 513 | 103 103 307 Guns 513 | 103 103 307 Cannons . | . . . Explosions . | . . . Melee . | . . . Ramming . | . . . Kinetic 513 | 103 103 307 Thermal . | . . . Explosive . | . . . Electromagnetic . | . . . Impact . | . . . Slashing . | . . . Piercing . | . . . Highest Corruption 2 | . 2 2 Average Corruption 2 | . 2 2 Corruption Purged . | . . . Corruption Blocked . | . . . Effects 5 | . 3 2 Message Errors 1 | . 1 . Heat Flow Errors 1 | . . 1 Data Loss (minor) 1 | . . 1 Misfires 1 | . 1 . Weapon Failures 1 | . 1 . Overload Shots . | . . . Overflow Damage . | . . . Projectiles . | . . . Explosions . | . . . Melee . | . . . Knockbacks . | . . . Impact . | . . . Kinetic . | . . . Secondary . | . . . Self-Inflicted Damage . | . . . Shots . | . . . Rammed . | . . . Targets Rammed . | . . . Kicked . | . . . Crushed . | . . . Highest Temperature 258 | . 20 258 Average Temperature 55 | . 20 55 Received Heat Transfer 236 | . . 236 Siege Activations . | . . . Martial Activations . | . . . Shielding Activations . | . . . Robots Disrupted . | . . . Combat Hostiles . | . . . Robots Corrupted . | . . . Combat Hostiles . | . . . Parts Fried . | . . . Impact Corruptions . | . . . Robots Melted . | . . . Combat Hostiles . | . . . Parts Melted . | . . . Heat Transferred . | . . . Parts Sabotaged . | . . . Parts Stolen . | . . . Parts Stripped . | . . . Power Chain Reactions . | . . . Alert | -11 -10 -10 ------- Run | Yrd Mat Min Maximum Alert Level . | . . . Low Security (%) 100 | 100 100 100 Level 1 . | . . . Level 2 . | . . . Level 3 . | . . . Level 4 . | . . . Level 5 . | . . . High Security . | . . . Max Security . | . . . Peak Influence 85 | 5 75 85 Initial 25 | . . 25 Average 23 | . 8 50 Influence Increases 197 | 10 87 100 Destroy 0b10 Robot/C 140 | . 60 80 Destroy 0b10 Robot/NC 10 | 10 . . Destroy Leader 30 | . 10 20 Successful Hack 2 | . 2 . Lose Combat Pursuer 15 | . 15 . Influence Decreases 197 | 10 22 165 Entered New Map 40 | . . 40 Time Decay 142 | 10 22 110 Lost Part 15 | . . 15 Squads Dispatched 1 | . 1 . Investigation . | . . . Extermination . | . . . Reinforcement 1 | . 1 . Assault . | . . . Garrison . | . . . Intercept . | . . . Searches Triggered . | . . . Construction Impeded . | . . . Haulers Reinforced . | . . . Active Scanning Responses . | . . . Cargo Convoy Interrupts . | . . . Stealth | -11 -10 -10 --------- Run | Yrd Mat Min Distress Signals . | . . . Communications Jammed . | . . . Distress Signals . | . . . Times Spotted 22 | . 6 16 Peak Tracking Total 6 | . 6 5 Tactical Retreats 3 | . 1 2 Traps | -11 -10 -10 ------- Run | Yrd Mat Min Traps Triggered 1 | . 1 . Indirectly . | . . . Trap Hack Attempts . | . . . Triggered . | . . . Disarmed . | . . . Reprogrammed . | . . . Reused 2 | . . 2 Traps Extracted . | . . . Installed 4 | . . 4 Triggered . | . . . Most Traps Carried 2 | . . 2 Machines | -11 -10 -10 ---------- Run | Yrd Mat Min Machines Disabled . | . . . Max in Single Turn . | . . . Machines Repaired . | . . . Machines Dismantled . | . . . Machines Sabotaged . | . . . Overloaded Fab Kills . | . . . Hacking | -11 -10 -10 --------- Run | Yrd Mat Min Machines Accessed 3 | . 3 . Terminals 1 | . 1 . Fabricators . | . . . Repair Stations . | . . . Recycling Units 2 | . 2 . Scanalyzers . | . . . Garrison Access . | . . . Total Hacks 5 | . 5 . Successful 5 | . 5 . Failed . | . . . Catastrophic . | . . . Database Lockouts . | . . . Manual . | . . . Terminals 1 | . 1 . Fabricators . | . . . Repair Stations . | . . . Recycling Units 4 | . 4 . Scanalyzers . | . . . Garrison Access . | . . . Terminal Hacks 1 | . 1 . Record 1 | . 1 . Fabricator Hacks . | . . . Repair Station Hacks . | . . . Recycling Unit Hacks 4 | . 4 . Process 1 | . 1 . Report Inventory 2 | . 2 . Retrieve Components 1 | . 1 . Scanalyzer . | . . . Garrison Access Hacks . | . . . Unauthorized Hacks . | . . . Terminals . | . . . Fabricators . | . . . Repair Stations . | . . . Recycling Units . | . . . Scanalyzers . | . . . Garrison Access . | . . . Data Cores Recovered . | . . . Used . | . . . Hacking Detections 2 | . 2 . Full Trace Events . | . . . Feedback Events . | . . . Feedback Blocked . | . . . Robot Schematics Acquired . | . . . Robots Built . | . . . Authchips . | . . . Time . | . . . Total Robot Build Rating . | . . . Part Schematics Acquired . | . . . Parts Built . | . . . Authchips . | . . . Time . | . . . Total Part Build Rating . | . . . Parts Repaired . | . . . Time . | . . . Parts Recycled . | . . . Recycled Matter . | . . . Retrieved Matter . | . . . Retrieved Components 1 | . 1 . Parts Scanalyzed . | . . . Part Schematics Acquired . | . . . Parts Damaged . | . . . Bothacking | -11 -10 -10 ------------ Run | Yrd Mat Min Used RIF Installer . | . . . Robots Hacked . | . . . Non-combat . | . . . Combat . | . . . Robot Hacks Applied . | . . . Relay Couplers Released . | . . . Fabnet Peak Effective % . | . . . Robots Rewired . | . . . Allies Hacked . | . . . Hacks Repelled . | . . . Allies | -11 -10 -10 -------- Run | Yrd Mat Min Total Allies . | . . . Largest Group . | . . . Highest-Rated Group . | . . . Highest-Rated Ally . | . . . Total Orders . | . . . Ally Attacks . | . . . Total Damage . | . . . Kills . | . . . Allies Corrupted . | . . . Allies Melted . | . . . Intel | -11 -10 -10 ------- Run | Yrd Mat Min Active Infowar (turns) 492 | 15 246 231 Seismic 492 | 15 246 231 ECM 47 | . 47 . Robot Analysis Total . | . . . Derelict Logs Recovered . | . . . Drone Launches . | . . . Drone Recoveries . | . . . Exploration | -11 -10 -10 ------------- Run | Yrd Mat Min Turns Passed 591 | 114 246 231 Spaces Moved 605 | 88 218 299 Core 4 | 4 . . Treads . | . . . Legs . | . . . Wheels 302 | 84 218 . Hover . | . . . Flight 299 | . . 299 Fastest Speed 37 | 50 85 37 Average Speed 63 | 87 89 37 Slowest Speed 90 | 90 90 45 Overloaded Moves . | . . . Propulsion Burnouts . | . . . Robots Hopped 2 | . . 2 Potential Cave-ins . | . . . Cave-ins Triggered . | . . . Exploration Rate (%) 28 | 4 43 37 Regions Visited 2 Branch Regions 1 Pre-discovered Areas . | . . . Known Exits Taken 1 | . 1 . Unknown Exits Taken 1 | 1 . . Scrap Searched 2 | . . 2 Spaces Dug . | . . . Terrain Destroyed . | . . . Melee . | . . . Projectile . | . . . AOE . | . . . Terrain Rammed . | . . . Walls Destroyed . | . . . Machines Disabled . | . . . Actions | -11 -10 -10 --------- Run | Yrd Mat Min Total 727 | 105 249 373 Wait 15 | . 5 10 Move 599 | 87 217 295 Hop 2 | . . 2 Pick Up 15 | 3 4 8 Fast Attach 5 | 5 . . Attach 9 | 1 3 5 Detach 7 | . 2 5 Swap 10 | . 3 7 Drop 13 | . 4 9 Fire 48 | 9 11 28 Melee . | . . . Ram . | . . . Kick . | . . . Crush . | . . . Escape Stasis . | . . . Rewire . | . . . Trap 4 | . . 4 Miscellaneous . | . . . Route ------- -11/Scrapyard -10/Materials -10/Mines History --------- Turn | Location | Event 11 | -11/Scrapyard | Discovered new exit (range 15) 115 | -11/Scrapyard | Entered Materials 302 | -10/Materials | Build established: Mutant 317 | -10/Materials | Discovered new exit (range 10) 353 | -10/Materials | Identified exit to Mines 361 | -10/Materials | Entered Mines 417 | -10/Mines | Core integrity fell below 50% 476 | -10/Mines | Assembled infested the area 549 | -10/Mines | Found a hidden stash of uninstalled traps 579 | -10/Mines | Core integrity fell below 20% 592 | -10/Mines | Destroyed by D-53 Grenadier with Mini Grenade Launcher Last Messages --------------- 00564_ Dropped Heavy Explosive Trap. 00566_ Installed Heavy Explosive Trap. 00568_ Dropped Heavy Explosive Trap. 00568_ as-15183 triggered Heavy Explosive Trap. 00568_ An explosion rips through the floor. 00568_ as-15183 destroyed. 00568_ as-18480 destroyed. 00569_ Installed Heavy Explosive Trap. 00572_ Lgt. Ion Engine destroyed. 00578_ as-81364 triggered Heavy Explosive Trap. 00578_ An explosion rips through the floor. 00578_ as-81364 destroyed. 00584_ Acquired Heavy Explosive Trap. 00588_ Dropped Heavy Explosive Trap. 00588_ Installed Heavy Explosive Trap. 00589_ The unstable cave ceiling collapses. 00590_ Dropped Heavy Explosive Trap. 00590_ Installed Heavy Explosive Trap. 00592_ Flight Unit destroyed. 00592_ Seismic Detector destroyed. Map ----- +----------------------------------------------------+ | ?????????????????????????????????????????????????? | | ?????????????????????????????????????????????????? | | ?????????????????????????????????????????????????? | | ?????????????????????????????????????????????????? | | ?????????????????????????????????????????????????? | | ?????????????????????????????????????????????????? | | ?????????????????????????????????????????????????? | | ?????????????????????????????????????????????????? | | ?????????????????????????????????????????????????? | | ?????#####???????????????????????????????????????? | | ????## ##????####??????????????????????????????? | | ????# ##???# ##?????????# ??????????????????? | | ????# ##??? ##???????? ??????????????????? | | ????# #?? #???????% ???????????????????? | | ????## #??? #???????% ???????????????????? | | #????## #??? #??????? #???????????????????? | | ??#### ##### #??????# ##??????????????????? | | "" ?# ## #?????# ! #??????????????????? | | "" ## # ##???? *d ???????????????????? | | "" % = ##??? =#???????????????????? | | % !% #?## #???????????????????? | | ## = #?# #???????????????????? | | ##??# #?# #????????????????????? | | ????# #### # ## #?# #????????????????????? | | ????# #??######## ### #????????????????????? | | ????# #?????????## ## @ #????????????????????? | | ????# #####?????## ^ < #????????????????????? | | ????# #????## ^ %*##????????????????????? | | ????##### #????# =## ####?????????????????????? | | ????????# #????# =### #????????????????????????? | | ????????#[#????## ##?# #????????????????????????? | | ????????#%##########??# #????????????????????????? | | ????????#=[ #??????# #????????????????????????? | | ????????###### #??????# #????????????????????????? | | ?????????##### ######?# #????????????????????????? | | ?????????# #?? #????????????????????????? | | ?????????# """ """ #?? ###??????????????????????? | | ??######## """ """ ### ##?????????????????????? | | ??# """ """ ## ! #?????????????????????? | | ??# ###### ## ! ##????????????????????? | | ??# #????# """ """ ##! ##???????????????????? | | ??#*#????# """ """ ##??????????????????? | | ??# #????# """ """ #?????????????????? | | ??#=#????# #### #?????????????????? | | ### #????# """ """ #???? =[#?????????????????? | | # ####?# """ """ #?????? ##?????????????????? | | ### """ """ #???????###??????????????????? | | ## #????????????????????????????? | | # # =[ #????????????????????????????? | | #### ####!#######????????????????????????????? | +----------------------------------------------------+ Best States ------------- Heat Dissipation 25 Energy Generation 10 Energy Capacity 125 Matter Stores 300 Matter Capacity 300 Sight Range 16 Terrain Scan Density 10 ECM Strength 1 Evasion (%) 62 Item Schematics ----------------- None Robot Schematics ------------------ None Fabricated ------------ Nothing Repaired ---------- Nothing Alien Tech Used ----------------- None Achievements -------------- None Challenges ------------ None Game ------ Seed DisintegrationDrainedLegs Manual? 0 Play Time 00:16:26 Cumulative 21.8 hours Start 2025.05.18 @ 19:19:04 End 2025.05.18 @ 19:35:19 Sessions 1 Manual Loads 0 Difficulty Rogue Special Mode None Game No. 30 Rogue 30 Adventurer 0 Explorer 0 Win Type - Total 0 Types 0/0/0/0/0/0/0/0/0/0 Lore% 12 Gallery% 19 Achievement% 21 Wizard Run 0 Options --------- Layout 0 ASCII 0 Keyboard 0 Movement Numpad Keybinds 0 Fullscreen 1 Font 18/SmallcapsGlow Map View 76x50 Zoom Use 0% Tactical HUD 1 Map Filters NONE Filters NONE Steam 1 RUN: afe0c192-b426-4b03-826c-c35a90620a46